bitfinex/quotes_ETHUSD_20241004
["timestamp","ask_amount","ask_price","bid_price","bid_amount"]
[1728072626338,4.97331101,2433.3,2433.0,1.75562238]
[1728072627224,4.97331101,2433.3,2432.8,29.15308424]
[1728072627225,1.89595011,2433.3,2432.8,19.72]
[1728072627429,4.11032,2432.9,2432.8,19.72]
[1728072627664,5.35032,2432.9,2432.6,2.54192238]
[1728072627851,5.41997887,2432.9,2432.6,2.54192238]
[1728072628053,5.35032,2432.9,2432.6,2.54192238]
[1728072628372,0.06960597,2432.8,2432.6,2.54192238]
[1728072629045,5.35032,2432.9,2432.6,2.54192238]
[1728072629373,0.0696616,2432.8,2432.6,2.54192238]
[1728072629530,5.35032,2432.9,2432.6,2.54192238]
[1728072629732,0.06960351,2432.7,2432.6,2.54192238]
[1728072630039,5.35032,2432.9,2432.6,5.59031962]
[1728072630237,5.35032,2432.9,2432.6,2.54192238]
[1728072630473,0.06968028,2432.8,2432.6,2.54192238]
[1728072631036,5.35032,2432.9,2432.6,2.54192238]
[1728072631482,0.06961509,2432.8,2432.6,2.54192238]
[1728072632141,0.11204386,2432.8,2432.6,2.54192238]
[1728072634072,1.24,2432.9,2432.6,2.54192238]
[1728072634568,0.11207916,2432.8,2432.6,2.54192238]
[1728072634771,0.11207916,2432.8,2432.6,5.59031962]
[1728072637270,1.35207916,2432.8,2432.6,5.59031962]
[1728072641563,1.24,2432.8,2432.6,5.59031962]
[1728072642234,0.11204065,2432.7,2432.6,6.45486029]
[1728072642461,1.24,2432.8,2432.6,6.45486029]
[1728072642767,1.24,2432.8,2432.6,3.40646305]
[1728072643073,1.24,2432.9,2432.6,3.40646305]
[1728072643279,1.24,2432.9,2432.6,7.51725305]
[1728072643441,0.11209741,2432.8,2432.6,7.51725305]
[1728072643839,1.24,2432.9,2432.6,7.51725305]
[1728072644265,0.11211567,2432.8,2432.6,7.51725305]
[1728072644471,0.11211567,2432.8,2432.6,6.73095305]
[1728072644780,1.24,2432.9,2432.6,6.73095305]
[1728072645067,0.11201703,2432.7,2432.6,6.73095305]
[1728072645275,1.24,2432.9,2432.6,6.73095305]
[1728072645669,0.11212816,2432.8,2432.6,6.73095305]
[1728072645968,1.24,2432.9,2432.6,6.73095305]
[1728072646271,0.1120714,2432.7,2432.6,6.73095305]
[1728072646470,1.24,2432.9,2432.6,6.73095305]
[1728072646775,0.11216466,2432.8,2432.6,6.73095305]
[1728072646978,1.24,2432.9,2432.6,6.73095305]
[1728072647178,0.11205529,2432.7,2432.6,6.73095305]
[1728072647351,1.24,2432.9,2432.6,6.73095305]
[1728072647352,1.24,2432.9,2432.6,9.99496246]
[1728072647548,0.11207316,2432.7,2432.6,6.73095305]
[1728072647879,1.24,2432.9,2432.6,6.73095305]
[1728072648374,0.11209342,2432.8,2432.6,6.73095305]
[1728072648549,1.24,2432.9,2432.6,6.73095305]
[1728072648733,0.11203665,2432.7,2432.6,6.73095305]
[1728072649076,1.24,2432.7,2432.6,6.73095305]
[1728072650832,1.24,2432.7,2432.6,2.62016305]
[1728072651033,0.7545,2432.7,2432.5,0.86454067]
[1728072651237,4.86517,2432.7,2432.4,2.62016305]
[1728072651440,4.2228135,2432.6,2432.4,2.62016305]
[1728072651953,4.2228135,2432.6,2432.4,1.75562238]
[1728072652178,4.2228135,2432.6,2432.3,2.62016305]
[1728072652350,5.35083,2432.6,2432.3,2.62016305]
[1728072652677,4.11133,2432.3,2432.2,0.86454067]
[1728072652876,4.11152,2432.2,2431.9,2.16135168]
[1728072653083,4.93959,2432.1,2431.8,2.62016305]
[1728072653283,1.24,2432.0,2431.8,1.75562238]
[1728072653775,0.11121629,2431.9,2431.8,1.75562238]
[1728072653977,1.24,2432.0,2431.8,1.75562238]
[1728072654866,0.11125242,2431.9,2431.8,1.75562238]
[1728072655270,1.24,2432.0,2431.8,1.75562238]
[1728072655489,1.24,2432.0,2431.7,4.87773]
[1728072655663,1.24,2432.0,2431.7,0.7654]
[1728072655993,0.11132546,2431.9,2431.7,0.7654]
[1728072656196,1.24,2432.0,2431.7,4.87772]
[1728072656488,0.11132546,2431.9,2431.7,4.87772]
[1728072656709,1.24,2432.0,2431.7,4.87772]
[1728072656897,1.24,2432.0,2431.8,1.75562238]
[1728072660475,5.35192,2432.0,2431.5,4.11266]
[1728072660662,6.381063,2432.0,2431.5,5.86828238]
[1728072661361,4.11201,2431.9,2431.5,5.86828238]
[1728072661730,4.11201,2431.9,2431.4,4.11275]
[1728072661731,4.11201,2431.9,2431.4,8.2255]
[1728072661866,4.11201,2431.9,2431.5,1.75562238]
[1728072662873,8.22417,2431.9,2431.5,1.75562238]
[1728072663074,0.11114254,2431.8,2431.5,1.75562238]
[1728072663897,1.35114254,2431.8,2431.5,1.75562238]
[1728072664699,0.7604,2431.7,2431.5,1.75562238]
[1728072665271,0.11099237,2431.6,2431.5,1.75562238]
[1728072665605,1.35099237,2431.6,2431.5,1.75562238]
[1728072665903,1.24,2431.6,2431.5,1.75562238]
[1728072667300,1.24,2431.6,2431.2,1.75562238]
[1728072667501,0.11091727,2431.5,2431.2,1.75562238]
[1728072667699,5.35253,2431.6,2431.2,1.75562238]
[1728072668318,5.35253,2431.6,2431.2,5.86881238]
[1728072668555,4.1127,2431.5,2431.0,28.75902]
[1728072668759,2.0239,2431.4,2431.1,1.75562238]
[1728072669046,2.13471771,2431.4,2431.1,1.75562238]
[1728072669760,1.24,2431.3,2431.0,5.86900238]
[1728072669928,1.3507426,2431.3,2431.0,5.86900238]
[1728072670470,0.8128,2431.1,2430.5,0.86454067]
[1728072670665,4.11425,2430.6,2430.2,9.51044015]
[1728072670893,4.11449,2430.5,2430.4,0.42810399]
[1728072671179,5.846644,2430.5,2430.4,0.42810399]
[1728072671321,4.11466,2430.4,2429.9,27.02]
[1728072671766,4.11257,2431.6,2430.7,0.8312]
[1728072671951,4.11184,2432.0,2431.5,1.75562238]
[1728072672155,0.411184,2431.9,2431.8,1.75562238]
[1728072672373,0.411184,2431.9,2431.6,1.75562238]
[1728072673363,4.11236,2431.7,2431.1,0.7581]
[1728072673564,4.11236,2431.7,2431.1,4.87144]
[1728072673866,4.11236,2431.7,2431.2,1.75562238]
[1728072674224,4.8729,2431.8,2431.2,5.86878238]
[1728072674526,5.4013084,2431.8,2431.2,5.86878238]
[1728072675229,4.11238,2431.7,2431.2,5.86878238]
[1728072675568,4.11238,2431.7,2431.2,4.11316]
[1728072675757,5.4013084,2431.8,2431.2,8.22623]
[1728072676063,5.4013084,2431.8,2431.3,3.80697293]
[1728072676266,4.8729,2431.8,2431.3,3.80697293]
[1728072677028,4.8729,2431.8,2431.3,7.91987293]
[1728072677462,4.8729,2431.8,2431.3,4.1129]
[1728072677842,8.98517,2431.8,2431.3,4.1129]
[1728072678047,8.98517,2431.8,2431.2,8.22617]
[1728072678246,8.98517,2431.8,2431.2,4.11307]
[1728072678585,4.11238,2431.7,2431.2,4.11307]
[1728072678942,4.11238,2431.7,2431.1,4.56507293]
[1728072679270,4.11238,2431.7,2431.1,0.7581]
[1728072679271,4.11272,2431.5,2431.1,0.7581]
[1728072679681,0.09515737,2431.4,2431.0,4.1134]
[1728072679878,0.09515737,2431.4,2431.0,8.22684]
[1728072680175,4.11272,2431.5,2431.0,8.22685]
[1728072680365,0.0950562,2431.3,2431.0,7.36900229]
[1728072680567,4.11272,2431.5,2431.0,7.36900229]
[1728072680771,0.09498108,2431.2,2431.0,7.36900229]
[1728072680966,4.11272,2431.5,2431.0,11.48244229]
[1728072681478,0.0951313,2431.4,2431.1,4.11334]
[1728072681682,0.0951313,2431.4,2431.1,7.92031293]
[1728072681981,4.11256,2431.6,2431.1,7.92031293]
[1728072682170,0.0950562,2431.3,2431.1,7.92031293]
[1728072682344,4.11256,2431.6,2431.1,11.50146445]
[1728072682546,0.09498108,2431.2,2431.1,7.92031293]
[1728072682741,4.11256,2431.6,2431.1,7.92031293]
[1728072683241,0.0952064,2431.5,2431.1,7.92031293]
[1728072685360,4.11256,2431.6,2431.1,7.92031293]
[1728072685561,0.0951313,2431.4,2431.1,7.92031293]
[1728072685770,4.11256,2431.6,2431.1,9.20390422]
[1728072687293,4.11256,2431.6,2431.1,7.92031293]
[1728072687812,0.8222,2431.5,2431.1,7.92031293]
[1728072688100,0.9174064,2431.5,2431.1,7.92031293]
[1728072692750,4.11319,2431.2,2430.9,20.5222]
[1728072692956,4.935806,2431.2,2430.9,19.72]
[1728072693171,0.09502658,2431.1,2430.9,19.72]
[1728072693378,4.935806,2431.2,2430.9,19.72]
[1728072693660,0.09494343,2431.0,2430.9,19.72]
[1728072693890,0.8161,2431.1,2430.8,3.80697293]
[1728072694065,0.09494343,2431.0,2430.8,3.80697293]
[1728072694278,0.8161,2431.1,2430.8,3.80697293]
[1728072694601,0.09476618,2431.0,2430.8,3.80697293]
[1728072695992,0.09476618,2431.0,2430.8,7.92082293]
[1728072696309,0.8161,2431.1,2430.8,7.92082293]
[1728072696467,4.11319,2431.2,2430.8,7.92082293]
[1728072696887,0.09484131,2431.1,2430.8,7.92082293]
[1728072697269,4.11319,2431.2,2430.8,7.92082293]
[1728072697688,4.11319,2431.2,2431.1,1.75750476]
[1728072697891,0.898466,2431.2,2431.1,1.75750476]
[1728072698268,4.87155,2431.3,2431.1,1.75750476]
[1728072698808,4.11319,2431.2,2431.1,1.75750476]
[1728072702923,4.11374,2430.9,2430.7,0.8162]
[1728072703134,4.11361,2431.0,2430.7,2.57370476]
[1728072703430,0.09470328,2430.9,2430.7,2.57370476]
[1728072703596,4.20843328,2430.9,2430.7,2.57370476]
[1728072705130,4.20841328,2430.9,2430.7,2.57370476]
[1728072706605,0.09470328,2430.9,2430.7,2.57370476]
[1728072707583,4.20841328,2430.9,2430.7,2.57370476]
[1728072707787,4.20845328,2430.9,2430.7,2.57370476]
[1728072708627,4.20845328,2430.9,2430.5,9.04586]
[1728072708941,4.20845328,2430.9,2430.7,1.75750476]
[1728072714727,0.09470328,2430.9,2430.7,1.75750476]
[1728072715034,4.20848328,2430.9,2430.7,1.75750476]
[1728072715627,4.11387,2430.8,2430.7,1.75750476]
[1728072715826,4.20843517,2430.8,2430.7,1.75750476]
[1728072726223,4.11387,2430.8,2430.7,1.75750476]
[1728072727420,4.20501229,2430.8,2430.7,1.75750476]
[1728072727645,0.09114229,2430.8,2430.7,1.75750476]
[1728072728050,4.11387,2430.8,2430.7,1.75750476]
[1728072728254,4.20495366,2430.8,2430.7,1.75750476]
[1728072729727,0.09108366,2430.8,2430.7,1.75750476]
[1728072730557,4.20495366,2430.8,2430.7,1.75750476]
[1728072731587,4.20495366,2430.8,2430.5,1.75750476]
[1728072731907,4.1141,2430.7,2430.6,2.30945097]
[1728072732197,8.87033476,2431.5,2430.6,1.75750476]
[1728072732198,8.22729,2431.0,2430.6,1.75750476]
[1728072732510,4.11374,2430.9,2430.8,1.75750476]
[1728072732798,4.20490203,2430.9,2430.8,1.75750476]
[1728072733698,4.20490203,2430.9,2430.6,1.75750476]
[1728072734060,4.11374,2430.9,2430.6,1.75750476]
[1728072736562,4.11355,2431.0,2430.6,1.75750476]
[1728072736799,4.11355,2431.0,2430.8,1.75750476]
[1728072737003,0.09093135,2430.9,2430.8,1.75750476]
[1728072739187,8.22718,2431.0,2430.8,1.75750476]
[1728072739398,0.09088475,2430.9,2430.8,1.75750476]
[1728072740796,4.20458475,2430.9,2430.8,1.75750476]
[1728072744523,0.09088475,2430.9,2430.8,1.75750476]
[1728072744986,4.20458475,2430.9,2430.8,1.75750476]
[1728072747590,4.11387,2430.8,2430.6,1.75750476]
[1728072748089,0.08922782,2430.7,2430.6,2.62204543]
[1728072748292,4.11387,2430.8,2430.6,2.62204543]
[1728072748893,4.11354,2431.0,2430.6,2.62204543]
[1728072749090,4.11377,2430.9,2430.6,2.62204543]
[1728072749311,4.20314811,2430.9,2430.6,2.62204543]
[1728072753829,4.20314811,2430.9,2430.6,0.86454067]
[1728072754035,4.20314811,2430.9,2430.7,1.75750476]
[1728072754641,0.08937811,2430.9,2430.7,1.75750476]
[1728072754798,4.11387,2430.8,2430.7,1.75750476]
[1728072754997,4.20316694,2430.8,2430.7,1.75750476]
[1728072755928,0.08929694,2430.8,2430.7,1.75750476]
[1728072762140,4.20317694,2430.8,2430.6,0.86454067]
[1728072762639,4.11404,2430.7,2430.5,2.62204543]
[1728072763502,4.11388,2430.8,2430.5,2.62204543]
[1728072763702,4.11388,2430.8,2430.7,1.75750476]
[1728072764104,0.7503,2430.7,2430.4,0.86454067]
[1728072764344,4.11371,2430.9,2430.6,1.75750476]
[1728072764651,4.11361,2431.0,2430.8,1.75750476]
[1728072765248,4.1137,2430.9,2430.6,3.4830185]
[1728072766447,4.1137,2430.9,2430.6,2.61847783]
[1728072766648,4.11361,2431.0,2430.8,1.75750476]
[1728072767101,4.11404,2430.7,2430.6,0.86454067]
[1728072767306,4.11404,2430.7,2430.3,1.72908135]
[1728072767307,4.11422,2430.6,2430.4,0.86454067]
[1728072767506,4.11437,2430.5,2430.4,0.86454067]
[1728072767749,4.11437,2430.5,2430.3,2.62204543]
[1728072767942,4.11454,2430.4,2430.3,1.75750476]
[1728072768274,4.11437,2430.5,2430.3,1.75750476]
[1728072772048,4.87863,2430.6,2430.3,1.75750476]
[1728072772248,4.87863,2430.6,2430.5,1.75750476]
[1728072774385,0.7791,2431.4,2430.6,0.7862]
[1728072774566,0.7791,2431.4,2431.3,1.75750476]
[1728072774891,0.11,2431.5,2431.3,1.75750476]
[1728072776172,0.11,2431.7,2431.4,0.8174]
[1728072776379,0.11,2431.7,2431.6,1.75750476]
[1728072777479,0.11,2431.7,2431.6,2.42625924]
[1728072779353,0.11,2431.8,2431.6,2.42625924]
[1728072780540,0.0718017,2431.7,2431.6,2.42625924]
[1728072780741,0.11,2431.8,2431.6,2.42625924]
[1728072781082,0.0718017,2431.7,2431.6,2.42625924]
[1728072781384,0.0718017,2431.7,2431.4,19.72]
[1728072781590,0.8101,2431.7,2431.4,19.72]
[1728072781772,4.92278,2431.5,2431.4,19.72]
[1728072782156,4.99499862,2431.5,2431.4,19.72]
[1728072782358,0.07221862,2431.5,2431.4,4.88405]
[1728072782587,0.11,2431.8,2431.6,4.11249]
[1728072782881,4.11077,2432.7,2432.2,4.8759]
[1728072782882,0.11,2432.3,2432.2,4.8759]
[1728072783088,0.11,2432.6,2432.3,4.11121]
[1728072783290,0.11,2432.6,2432.5,1.75750476]
[1728072783668,0.11,2432.6,2432.4,3.80300437]
[1728072784200,0.11,2432.6,2432.2,3.80300437]
[1728072784201,4.22092,2432.6,2432.2,3.80300437]
[1728072784357,4.11118,2432.4,2431.9,0.815]
[1728072784557,4.11159,2432.2,2431.8,3.80300437]
[1728072785396,8.22324,2432.2,2431.8,3.80300437]
[1728072785699,4.11159,2432.2,2431.8,3.80300437]
[1728072785869,8.22324,2432.2,2431.8,3.80300437]
[1728072786066,8.22318,2432.2,2431.8,3.80300437]
[1728072786796,4.11159,2432.2,2431.8,3.80300437]
[1728072787378,4.11176,2432.1,2431.7,0.793]
[1728072787580,4.11176,2432.1,2431.6,7.91538437]
[1728072788561,4.11176,2432.1,2431.6,12.02781437]
[1728072788766,4.11176,2432.1,2431.6,7.91538437]
[1728072788994,4.11176,2432.1,2431.6,12.02781437]
[1728072789367,4.11176,2432.1,2431.6,7.91538437]
[1728072789787,4.11176,2432.1,2431.6,12.02780437]
[1728072790172,0.05756664,2432.0,2431.6,7.91538437]
[1728072790609,0.05756664,2432.0,2431.6,12.02780437]
[1728072791281,4.11159,2432.2,2431.6,7.91538437]
[1728072791478,4.603289,2432.2,2431.6,7.91538437]
[1728072791684,8.714939,2432.2,2431.6,12.02777437]
[1728072792030,0.0576417,2432.1,2431.6,12.02777437]
[1728072792309,0.0576417,2432.1,2431.6,7.91538437]
[1728072792465,4.1693117,2432.1,2431.6,7.91538437]
[1728072792670,4.11167,2432.1,2431.6,12.02781437]
[1728072793017,0.05756664,2432.0,2431.6,7.91538437]
[1728072793402,4.11169,2432.1,2431.6,7.91538437]
[1728072793606,0.05749157,2431.9,2431.6,12.02779437]
[1728072793918,0.0574165,2431.8,2431.6,15.38759926]
[1728072794078,0.7695,2432.2,2431.6,3.80300437]
[1728072794424,0.7695,2431.8,2431.4,3.80300437]
[1728072794583,0.7695,2431.8,2431.4,7.91585437]
[1728072795084,0.05732355,2431.7,2431.4,7.91585437]
[1728072795279,4.88168,2431.8,2431.4,7.91585437]
[1728072795722,0.05732355,2431.7,2431.4,7.91585437]
[1728072796022,4.88168,2431.8,2431.4,7.91585437]
[1728072796491,0.05732355,2431.7,2431.4,7.91585437]
[1728072796684,0.7695,2431.8,2431.4,7.91585437]
[1728072797109,0.05733362,2431.7,2431.4,7.91585437]
[1728072797311,0.7695,2431.8,2431.4,7.91585437]
[1728072797521,0.05725853,2431.6,2431.4,3.80300437]
[1728072797686,4.9918,2431.8,2431.4,3.80300437]
[1728072797880,0.05718344,2431.5,2431.4,4.11284]
[1728072798083,0.8795,2431.8,2431.4,7.91584437]
[1728072798304,0.8795,2431.8,2431.6,3.80300437]
[1728072800924,0.05733362,2431.7,2431.6,3.80300437]
[1728072801087,0.8795,2431.8,2431.6,3.80300437]
[1728072801287,0.05733362,2431.7,2431.6,3.80300437]
[1728072801589,0.8795,2431.8,2431.6,3.80300437]
[1728072801813,0.0572311,2431.7,2431.6,3.80300437]
[1728072802617,0.8795,2431.8,2431.6,3.80300437]
[1728072802781,0.0572311,2431.7,2431.6,3.80300437]
[1728072803184,4.99169,2431.8,2431.6,3.80300437]
[1728072803404,0.0572311,2431.7,2431.6,3.80300437]
[1728072803813,4.99169,2431.8,2431.6,3.80300437]
[1728072803999,0.0572311,2431.7,2431.6,3.80300437]
[1728072804413,4.99169,2431.8,2431.6,3.80300437]
[1728072804733,0.0572311,2431.7,2431.6,3.80300437]
[1728072805027,4.99169,2431.8,2431.6,3.80300437]
[1728072805232,0.0572311,2431.7,2431.6,3.80300437]
[1728072805600,4.99169,2431.8,2431.6,3.80300437]
[1728072805831,0.0572311,2431.7,2431.3,4.11299]
[1728072806029,4.99169,2431.8,2431.3,6.988223]
[1728072806240,4.99169,2431.8,2431.7,1.75664606]
[1728072811120,4.11245,2431.7,2431.5,1.75664606]
[1728072813261,4.11234,2431.7,2431.5,1.75664606]
[1728072818149,4.11234,2431.7,2431.5,1.75563067]
[1728072819476,4.11251,2431.6,2431.5,1.75563067]
[1728072819677,4.11283,2431.5,2431.2,0.8063]
[1728072819880,4.11283,2431.5,2431.3,1.75664606]
[1728072820089,0.05704751,2431.4,2431.3,1.75664606]
[1728072822884,0.05704751,2431.4,2431.3,8.41820931]
[1728072823194,0.11,2431.7,2431.6,4.90791]
[1728072823392,0.11,2431.7,2431.6,7.7654697]
[1728072823594,0.11,2432.0,2431.9,4.66201]
[1728072823894,0.11,2432.4,2432.1,4.11162]
[1728072824099,0.11,2432.4,2432.3,1.75664606]
[1728072824455,4.22116,2432.4,2432.3,1.75664606]
[1728072830902,4.27626368,2432.4,2432.3,1.75664606]
[1728072845126,0.16510368,2432.4,2432.3,1.75664606]
[1728072855758,4.27626368,2432.4,2432.3,1.75664606]
[1728072855975,0.16510368,2432.4,2432.3,1.75664606]
[1728072858255,4.27626368,2432.4,2432.0,0.7649]
[1728072858464,4.11135,2432.3,2432.1,2.30796927]
[1728072858631,4.11135,2432.3,2432.1,1.75664606]
[1728072858832,0.05479645,2432.2,2432.1,1.75664606]
[1728072859261,5.00046,2432.4,2432.1,1.75664606]
[1728072859464,0.05479442,2432.2,2432.1,1.75664606]
[1728072859771,0.05479442,2432.2,2432.1,2.30796817]
[1728072859933,5.00046,2432.4,2432.1,2.30796817]
[1728072860130,0.05479442,2432.2,2432.1,1.75664606]
[1728072860369,5.00046,2432.4,2432.1,2.30796045]
[1728072860570,0.05479442,2432.2,2432.1,1.75664606]
[1728072860870,4.11136,2432.3,2432.1,1.75664606]
[1728072861174,0.05477619,2432.2,2432.1,1.75664606]
[1728072861343,4.1115,2432.2,2432.1,1.75664606]
[1728072861695,4.16627619,2432.2,2431.9,1.75664606]
[1728072864171,4.1117,2432.1,2431.8,20.5267]
[1728072864371,4.1117,2432.1,2431.8,22.28334606]
[1728072864672,0.05307805,2432.0,2431.8,22.28334606]
[1728072867201,0.05307805,2432.0,2431.9,5.42881]
[1728072867387,0.64458388,2433.0,2432.7,5.42734]
[1728072867594,0.7689,2433.3,2432.9,1.75664606]
[1728072867762,4.87856,2433.3,2433.1,1.75664606]
[1728072868665,4.10998,2433.1,2432.9,1.75664606]
[1728072870475,4.11015,2433.0,2432.9,1.75664606]
[1728072871802,4.11015,2433.0,2432.8,3.80203575]
[1728072874487,4.10998,2433.1,2432.8,3.80203575]
[1728072874488,4.11032,2432.9,2432.8,3.80203575]
[1728072875009,4.15100445,2432.9,2432.8,3.80203575]
[1728072877186,4.11064,2432.8,2432.6,3.80203575]
[1728072877592,4.11065,2432.7,2432.6,3.80203575]
[1728072878095,8.22128,2432.8,2432.6,3.80203575]
[1728072878407,0.04050513,2432.7,2432.6,3.80203575]
[1728072878614,4.11064,2432.8,2432.6,3.80203575]
[1728072878768,0.04050513,2432.7,2432.6,3.80203575]
[1728072879088,4.11064,2432.8,2432.6,3.80203575]
[1728072879290,0.04050513,2432.7,2432.6,3.80203575]
[1728072879593,4.11058,2432.8,2432.6,3.80203575]
[1728072879768,4.15115513,2432.7,2432.6,3.80203575]
[1728072880695,0.04050513,2432.7,2432.6,3.80203575]
[1728072881092,4.11058,2432.8,2432.6,3.80203575]
[1728072881319,0.04046449,2432.7,2432.6,3.80203575]
[1728072881504,4.11058,2432.8,2432.6,3.80203575]
[1728072881708,0.04046449,2432.7,2432.6,3.80203575]
[1728072881892,4.11058,2432.8,2432.6,3.80203575]
[1728072882088,0.04046449,2432.7,2432.6,3.80203575]
[1728072882288,4.11058,2432.8,2432.6,3.80203575]
[1728072882620,0.04046449,2432.7,2432.6,3.80203575]
[1728072882790,4.11058,2432.8,2432.6,3.80203575]
[1728072883117,0.04046449,2432.7,2432.6,3.80203575]
[1728072883327,4.11058,2432.8,2432.6,3.80203575]
[1728072883630,0.04046449,2432.7,2432.6,3.80203575]
[1728072884085,4.11058,2432.8,2432.6,3.80203575]
[1728072884486,0.04046449,2432.7,2432.6,3.80203575]
[1728072884754,4.11058,2432.8,2432.6,3.80203575]
[1728072885028,0.04046449,2432.7,2432.6,3.80203575]
[1728072885245,4.11058,2432.8,2432.6,3.80203575]
[1728072885407,0.04049377,2432.7,2432.6,3.80203575]
[1728072885726,4.11058,2432.8,2432.6,3.80203575]
[1728072885935,0.04049377,2432.7,2432.6,3.80203575]
[1728072886083,4.11058,2432.8,2432.6,3.80203575]
[1728072886526,0.04049377,2432.7,2432.6,3.80203575]
[1728072886729,4.11058,2432.8,2432.6,3.80203575]
[1728072886931,0.04049377,2432.7,2432.6,3.80203575]
[1728072887117,4.11058,2432.8,2432.6,3.80203575]
[1728072887289,0.04055234,2432.7,2432.6,3.80203575]
[1728072887809,0.04071089,2432.7,2432.6,3.80203575]
[1728072888009,4.11058,2432.8,2432.6,3.80203575]
[1728072888222,0.04071089,2432.7,2432.6,4.81422932]
[1728072888544,4.1099,2433.2,2432.8,0.8212]
[1728072888742,4.1099,2433.2,2433.1,3.80203575]
[1728072889042,4.10966,2433.3,2433.1,3.80203575]
[1728072889245,8.21916,2433.4,2433.1,3.80203575]
[1728072889548,4.10964,2433.3,2433.2,0.7606]
[1728072890530,4.10981,2433.2,2433.1,3.80203575]
[1728072890819,4.1491736,2433.2,2433.1,3.80203575]
[1728072891827,4.11005,2433.1,2432.7,21.0992]
[1728072892003,4.11032,2432.9,2432.8,3.80203575]
[1728072892816,4.11032,2432.9,2432.6,3.80203575]
[1728072892817,4.11048,2432.8,2432.6,3.80203575]
[1728072893606,4.11048,2432.8,2432.7,1.75497629]
[1728072894325,4.11032,2432.9,2432.7,1.75497629]
[1728072894843,0.03939049,2432.8,2432.7,1.75497629]
[1728072900760,4.88948,2432.8,2432.5,0.55]
[1728072900974,1.67898,2432.8,2432.3,0.7708]
[1728072901250,4.14841623,2432.7,2432.6,1.75497629]
[1728072902260,0.03774623,2432.7,2432.6,2.51267629]
[1728072902457,0.03774623,2432.7,2432.6,7.17349629]
[1728072902613,0.8214,2433.4,2433.1,0.7577]
[1728072902813,4.93045,2433.7,2433.3,1.75497629]
[1728072903047,4.10905,2433.7,2433.6,1.75497629]
[1728072908957,4.10905,2433.7,2433.6,3.75497629]
[1728072910244,4.10905,2433.7,2433.6,2.0]
[1728072910452,5.838985,2433.7,2433.6,2.0]
[1728072911146,8.838985,2433.7,2433.6,2.0]
[1728072923981,8.91058277,2433.7,2433.6,2.0]
[1728072929104,9.55499561,2433.7,2433.6,2.0]
[1728072933536,11.31008015,2433.7,2433.6,2.0]
[1728072935856,14.46237115,2433.7,2433.6,2.0]
[1728072946001,11.31008015,2433.7,2433.6,2.0]
[1728072952006,4.82506061,2433.7,2433.6,2.0]
[1728072952302,4.82506061,2433.7,2433.6,4.55488454]
[1728072953066,4.18064777,2433.7,2433.6,4.55488454]
[1728072955166,4.18064777,2433.7,2433.6,2.7998]
[1728072963717,4.18064777,2433.7,2433.6,2.0]
[1728072963929,10.55858709,2433.7,2433.6,2.0]
[1728072965625,12.6070102,2433.7,2433.6,2.0]
[1728072984916,16.9440102,2433.7,2433.6,0.9375]
[1728072985166,28.23794058,2433.7,2433.6,0.9375]
[1728072985656,4.11032,2432.9,2432.8,0.7521]
[1728072985815,7.11032,2432.9,2432.8,0.7521]
[1728072986844,7.11032,2432.9,2432.8,1.754]
[1728072989848,7.11032,2432.9,2432.8,1.0019]
[1728072989849,8.86616542,2432.9,2432.8,1.0019]
[1728072990041,10.16379996,2432.9,2432.8,1.0019]
[1728072992841,8.40795454,2432.9,2432.8,1.0019]
[1728072993059,7.11032,2432.9,2432.8,1.0019]
[1728073000848,8.86616542,2432.9,2432.8,1.0019]
[1728073001474,16.25135242,2432.9,2432.8,1.0019]
[1728073001687,17.04305242,2432.9,2432.8,1.0019]
[1728073002395,16.63286942,2432.9,2432.8,1.0019]
[1728073002695,17.7098113,2432.9,2432.8,1.0019]
[1728073002872,9.19531188,2432.9,2432.8,1.0019]
[1728073003069,10.9511573,2432.9,2432.8,1.0019]
[1728073026408,11.59578873,2432.9,2432.8,1.0019]
[1728073029252,20.77010074,2432.9,2432.8,1.0019]
[1728073029485,21.25408697,2432.9,2432.8,1.0019]
[1728073030746,45.93066297,2432.9,2432.8,1.0019]
[1728073035418,7.11218,2431.8,2431.7,0.7595]
[1728073038557,4.11345,2431.1,2431.0,0.8137]
[1728073039321,4.11322,2431.2,2431.0,0.8137]
[1728073039930,8.22652,2431.2,2431.0,0.8137]
[1728073040160,4.11336,2431.1,2431.0,0.8137]
[1728073041682,4.1132,2431.2,2431.0,0.8137]
[1728073041818,4.1132,2431.2,2431.0,0.25695454]
[1728073042015,4.1132,2431.2,2431.1,0.781]
[1728073046479,4.11287,2431.4,2431.1,0.781]
[1728073046624,4.11269,2431.5,2431.3,0.8202]
[1728073046819,4.11269,2431.5,2431.4,0.8202]
[1728073047048,7.11269,2431.5,2431.4,0.8202]
[1728073047555,4.11269,2431.5,2431.4,0.8202]
[1728073050369,4.11319,2431.2,2431.1,0.8153]
[1728073050899,4.11319,2431.2,2430.8,7.3]
[1728073050900,4.11356,2431.0,2430.9,0.8153]
[1728073054704,4.11387,2430.8,2430.7,20.5102]
[1728073055229,4.11387,2430.8,2430.7,0.7902]
[1728073064547,4.11447,2430.5,2430.4,0.7815]
[1728073069450,4.11406,2430.7,2430.4,0.7815]
[1728073069875,4.11406,2430.7,2430.6,0.7967]
[1728073074452,4.11397,2430.8,2430.6,0.7967]
[1728073074854,8.22795,2430.8,2430.6,0.7967]
[1728073075239,4.11397,2430.8,2430.6,0.7967]
[1728073075550,8.22796,2430.8,2430.6,0.7967]
[1728073075750,8.22794,2430.8,2430.6,0.7967]
[1728073075963,4.11397,2430.8,2430.6,0.7967]
[1728073076133,4.11404,2430.7,2430.6,0.7967]
[1728073076784,8.22795,2430.8,2430.6,0.7967]
[1728073077094,4.11404,2430.7,2430.6,0.7967]
[1728073079888,8.22796,2430.8,2430.6,0.7967]
[1728073080794,4.11397,2430.8,2430.6,0.7967]
[1728073081001,4.11404,2430.7,2430.6,0.7967]
[1728073083504,4.11395,2430.8,2430.6,0.7967]
[1728073083718,8.22791,2430.8,2430.6,0.7967]
[1728073083919,4.11395,2430.8,2430.6,0.7967]
[1728073085218,8.2279,2430.8,2430.6,0.7967]
[1728073085377,4.11395,2430.8,2430.6,0.7967]
[1728073088127,0.64499993,2431.0,2430.7,1.75584542]
[1728073088275,4.11363,2431.0,2430.8,1.36539554]
[1728073088474,4.11363,2431.0,2430.8,0.7784]